[Event "*** Titled Tuesday Blitz"]
[Site "Chess.com"]
[Date "2020.03.03"]
[Round "2"]
[White "bascheyaro"]
[Black "Palacios-LLera"]
[Result "1-0"]
[WhiteElo "2762"]
[BlackElo "2516"]
[TimeControl "180+1"]
[EndTime "9:19:47 PST"]
[Termination "bascheyaro won on time"]

1. d4 {[%clk 0:03:00.2]} 1... d5 {[%clk 0:02:59.7]} 2. c4 {[%clk 0:03:00.4]}
2... e6 {[%clk 0:03:00]} 3. Nc3 {[%clk 0:03:00.9]} 3... Nf6 {[%clk 0:03:00]} 4.
Bg5 {[%clk 0:03:00.9]} 4... Be7 {[%clk 0:03:00.1]} 5. e3 {[%clk 0:03:01.2]} 5...
Nbd7 {[%clk 0:03:00.2]} 6. Nf3 {[%clk 0:03:01.6]} 6... O-O {[%clk 0:03:00.4]} 7.
Qc2 {[%clk 0:03:02]} 7... Re8 {[%clk 0:03:00.8]} 8. Rd1 {[%clk 0:03:01.7]} 8...
Nf8 {[%clk 0:02:56.8]} 9. cxd5 {[%clk 0:02:58.2]} 9... exd5 {[%clk 0:02:56.2]}
10. Ne5 {[%clk 0:02:58.2]} 10... c6 {[%clk 0:02:56]} 11. Bd3 {[%clk 0:02:57.5]}
11... N6d7 {[%clk 0:02:50]} 12. Bf4 {[%clk 0:02:52]} 12... Nxe5 {[%clk
0:02:49.1]} 13. Bxe5 {[%clk 0:02:52.3]} 13... Bg4 {[%clk 0:02:43.6]} 14. Rd2
{[%clk 0:02:50.4]} 14... Bh5 {[%clk 0:02:43.2]} 15. h4 {[%clk 0:02:44.4]} 15...
Bg6 {[%clk 0:02:41.9]} 16. h5 {[%clk 0:02:43.5]} 16... Bxd3 {[%clk 0:02:41.7]}
17. Qxd3 {[%clk 0:02:44.1]} 17... h6 {[%clk 0:02:39.6]} 18. Rh3 {[%clk 0:02:42]}
18... Bd6 {[%clk 0:02:34.2]} 19. Bxd6 {[%clk 0:02:32.2]} 19... Qxd6 {[%clk
0:02:33.5]} 20. Qf5 {[%clk 0:02:25.1]} 20... Qe6 {[%clk 0:02:28.9]} 21. Qf4
{[%clk 0:02:22]} 21... Nd7 {[%clk 0:02:25]} 22. g4 {[%clk 0:02:19.4]} 22... Qf6
{[%clk 0:02:24.3]} 23. Qg3 {[%clk 0:02:02.5]} 23... Re6 {[%clk 0:02:18.7]} 24.
Qg2 {[%clk 0:01:57.4]} 24... Rae8 {[%clk 0:02:15]} 25. Kd1 {[%clk 0:01:55.4]}
25... Qe7 {[%clk 0:02:02.3]} 26. a3 {[%clk 0:01:46.7]} 26... a5 {[%clk
0:01:57.6]} 27. Rc2 {[%clk 0:01:45]} 27... b5 {[%clk 0:01:55.7]} 28. Ne2 {[%clk
0:01:43.4]} 28... Nb6 {[%clk 0:01:48.1]} 29. Nf4 {[%clk 0:01:38.8]} 29... Rd6
{[%clk 0:01:47]} 30. Rg3 {[%clk 0:01:35]} 30... Qe4 {[%clk 0:01:43.5]} 31. g5
{[%clk 0:01:27.5]} 31... Qxg2 {[%clk 0:01:42.5]} 32. Rxg2 {[%clk 0:01:27]} 32...
hxg5 {[%clk 0:01:42.3]} 33. Rxg5 {[%clk 0:01:27]} 33... Nc4 {[%clk 0:01:40.6]}
34. Ke2 {[%clk 0:01:24.7]} 34... Rf6 {[%clk 0:01:39]} 35. Kd3 {[%clk 0:01:21.4]}
35... Kh7 {[%clk 0:01:34.3]} 36. Rg2 {[%clk 0:00:53.5]} 36... a4 {[%clk
0:01:32.7]} 37. Kc3 {[%clk 0:00:52.7]} 37... Na5 {[%clk 0:01:14.8]} 38. Kb4
{[%clk 0:00:50.6]} 38... Nb3 {[%clk 0:01:14.6]} 39. Nd3 {[%clk 0:00:50.5]} 39...
Ree6 {[%clk 0:01:06.2]} 40. Rh2 {[%clk 0:00:38]} 40... Na1 {[%clk 0:01:00.5]}
41. Rc1 {[%clk 0:00:37]} 41... Nb3 {[%clk 0:01:00.4]} 42. Rg1 {[%clk 0:00:36.5]}
42... Nd2 {[%clk 0:00:56.3]} 43. Rhg2 {[%clk 0:00:34.8]} 43... g6 {[%clk
0:00:55]} 44. hxg6+ {[%clk 0:00:34.4]} 44... fxg6 {[%clk 0:00:52.6]} 45. Nf4
{[%clk 0:00:33.1]} 45... Rd6 {[%clk 0:00:52.3]} 46. Rh2+ {[%clk 0:00:32]} 46...
Kg8 {[%clk 0:00:50]} 47. Rgh1 {[%clk 0:00:32.3]} 47... Rf7 {[%clk 0:00:34.7]}
48. Rh8+ {[%clk 0:00:31.4]} 48... Kg7 {[%clk 0:00:35]} 49. Rc8 {[%clk
0:00:25.2]} 49... Nc4 {[%clk 0:00:24.2]} 50. Nd3 {[%clk 0:00:23.8]} 50... Kf6
{[%clk 0:00:20.7]} 51. Rh4 {[%clk 0:00:22.9]} 51... Ke6 {[%clk 0:00:18.9]} 52.
Nc5+ {[%clk 0:00:20.5]} 52... Ke7 {[%clk 0:00:17]} 53. Rc7+ {[%clk 0:00:19.9]}
53... Kf8 {[%clk 0:00:16.4]} 54. Rh8+ {[%clk 0:00:19.5]} 54... Kg7 {[%clk
0:00:16.6]} 55. Rh7+ {[%clk 0:00:19.9]} 55... Kxh7 {[%clk 0:00:16.8]} 56. Rxf7+
{[%clk 0:00:20.5]} 56... Kh6 {[%clk 0:00:17.4]} 57. Rc7 {[%clk 0:00:20.6]} 57...
Rf6 {[%clk 0:00:14.8]} 58. Nd3 {[%clk 0:00:20.8]} 58... Kg5 {[%clk 0:00:13.5]}
59. Kc5 {[%clk 0:00:21.2]} 59... Kg4 {[%clk 0:00:13.2]} 60. Rxc6 {[%clk
0:00:21.6]} 60... Rxc6+ {[%clk 0:00:11.7]} 61. Kxc6 {[%clk 0:00:22.5]} 61... Kf3
{[%clk 0:00:10.7]} 62. Kxd5 {[%clk 0:00:22.8]} 62... Ke2 {[%clk 0:00:11.1]} 63.
Nf4+ {[%clk 0:00:22.8]} 63... Kxf2 {[%clk 0:00:10.7]} 64. e4 {[%clk 0:00:23.2]}
64... g5 {[%clk 0:00:09.9]} 65. Nh5 {[%clk 0:00:23.1]} 65... g4 {[%clk
0:00:09.6]} 66. e5 {[%clk 0:00:23.5]} 66... Ne3+ {[%clk 0:00:07.4]} 67. Kc6
{[%clk 0:00:23.3]} 67... Kf3 {[%clk 0:00:03.4]} 68. e6 {[%clk 0:00:22.8]} 68...
Nf5 {[%clk 0:00:02.8]} 69. d5 {[%clk 0:00:23.2]} 1-0

[Event "*** Titled Tuesday Blitz"]
[Site "Chess.com"]
[Date "2020.03.03"]
[Round "2"]
[White "NguyenHlb"]
[Black "LawrenceTrent"]
[Result "0-1"]
[WhiteElo "2286"]
[BlackElo "2575"]
[TimeControl "180+1"]
[EndTime "9:19:47 PST"]
[Termination "LawrenceTrent won by checkmate"]

1. d4 {[%clk 0:02:59.2]} 1... g6 {[%clk 0:03:00.9]} 2. c4 {[%clk 0:02:59.1]}
2... Bg7 {[%clk 0:02:55.4]} 3. Nc3 {[%clk 0:02:58.9]} 3... d6 {[%clk 0:02:54.8]}
4. Nf3 {[%clk 0:02:58.1]} 4... Nf6 {[%clk 0:02:51.8]} 5. e4 {[%clk 0:02:56.6]}
5... O-O {[%clk 0:02:48.4]} 6. Be2 {[%clk 0:02:56.6]} 6... Nbd7 {[%clk
0:02:48.8]} 7. O-O {[%clk 0:02:55.8]} 7... e5 {[%clk 0:02:39.6]} 8. dxe5 {[%clk
0:02:52.6]} 8... dxe5 {[%clk 0:02:30.7]} 9. Qc2 {[%clk 0:02:52]} 9... c6 {[%clk
0:02:10.9]} 10. b3 {[%clk 0:02:51.4]} 10... Qe7 {[%clk 0:02:07.3]} 11. a4 {[%clk
0:02:50.7]} 11... a5 {[%clk 0:02:06.5]} 12. Ba3 {[%clk 0:02:49.2]} 12... Nc5
{[%clk 0:02:06.8]} 13. Rad1 {[%clk 0:02:42.7]} 13... Bg4 {[%clk 0:01:53.1]} 14.
h3 {[%clk 0:02:38.3]} 14... Bxf3 {[%clk 0:01:48.6]} 15. Bxf3 {[%clk 0:02:39.2]}
15... Rfd8 {[%clk 0:01:48.6]} 16. Rxd8+ {[%clk 0:02:24.9]} 16... Rxd8 {[%clk
0:01:44.7]} 17. Rd1 {[%clk 0:02:25.3]} 17... Rd4 {[%clk 0:01:37.8]} 18. Ne2
{[%clk 0:02:18.1]} 18... Rxd1+ {[%clk 0:01:27.9]} 19. Qxd1 {[%clk 0:02:19]}
19... Qd7 {[%clk 0:01:26.9]} 20. Qxd7 {[%clk 0:01:23.5]} 20... Nfxd7 {[%clk
0:01:25.4]} 21. Nc1 {[%clk 0:01:23.2]} 21... Bf8 {[%clk 0:01:23.8]} 22. Bxc5
{[%clk 0:01:06.7]} 22... Nxc5 {[%clk 0:01:20.2]} 23. Kf1 {[%clk 0:01:05.2]}
23... h5 {[%clk 0:01:17]} 24. g4 {[%clk 0:00:51.5]} 24... h4 {[%clk 0:01:11.4]}
25. Ke2 {[%clk 0:00:48.8]} 25... Ne6 {[%clk 0:01:04.9]} 26. Bg2 {[%clk
0:00:36.2]} 26... Nf4+ {[%clk 0:00:55.9]} 27. Kf1 {[%clk 0:00:36]} 27... Ba3
{[%clk 0:00:50.7]} 28. Ne2 {[%clk 0:00:35.4]} 28... Nd3 {[%clk 0:00:50.6]} 29.
Bf3 {[%clk 0:00:32.1]} 29... Nc5 {[%clk 0:00:46.4]} 30. Nc3 {[%clk 0:00:30.1]}
30... Nxb3 {[%clk 0:00:45.5]} 31. Be2 {[%clk 0:00:25.7]} 31... Bb2 {[%clk
0:00:39.5]} 32. Nb1 {[%clk 0:00:25.2]} 32... Nc5 {[%clk 0:00:38.9]} 33. f3
{[%clk 0:00:22.8]} 33... Nxa4 {[%clk 0:00:36]} 34. Ke1 {[%clk 0:00:23.1]} 34...
Bd4 {[%clk 0:00:35.2]} 35. Kd2 {[%clk 0:00:22.1]} 35... Nc5 {[%clk 0:00:31.7]}
36. Kc2 {[%clk 0:00:22]} 36... Kg7 {[%clk 0:00:30.3]} 37. Na3 {[%clk 0:00:22.3]}
37... Kf6 {[%clk 0:00:30.1]} 38. Bf1 {[%clk 0:00:22.7]} 38... Kg5 {[%clk
0:00:30.1]} 39. Kd2 {[%clk 0:00:20.5]} 39... Kf4 {[%clk 0:00:28.1]} 40. Nc2
{[%clk 0:00:21.4]} 40... Kxf3 {[%clk 0:00:27.8]} 41. Be2+ {[%clk 0:00:21]} 41...
Kxe4 {[%clk 0:00:25.8]} 42. g5 {[%clk 0:00:21.9]} 42... Kf4 {[%clk 0:00:25.7]}
43. Bg4 {[%clk 0:00:22]} 43... Kxg5 {[%clk 0:00:25.9]} 44. Bc8 {[%clk
0:00:21.8]} 44... a4 {[%clk 0:00:26.3]} 45. Na3 {[%clk 0:00:21.3]} 45... Bb2
{[%clk 0:00:24.4]} 46. Nb1 {[%clk 0:00:21.1]} 46... a3 {[%clk 0:00:24.6]} 47.
Kc2 {[%clk 0:00:21.6]} 47... a2 {[%clk 0:00:25]} 48. Kxb2 {[%clk 0:00:21.6]}
48... axb1=Q+ {[%clk 0:00:24.3]} 49. Kxb1 {[%clk 0:00:22.5]} 49... Kf4 {[%clk
0:00:24.4]} 50. Kc2 {[%clk 0:00:22.8]} 50... f5 {[%clk 0:00:24.5]} 51. Kd2
{[%clk 0:00:23.1]} 51... Kg3 {[%clk 0:00:23.2]} 52. Ke3 {[%clk 0:00:23.4]} 52...
Kxh3 {[%clk 0:00:23.5]} 53. Kf3 {[%clk 0:00:22.8]} 53... e4+ {[%clk 0:00:23]}
54. Kf4 {[%clk 0:00:23]} 54... Kg2 {[%clk 0:00:22.4]} 55. Ke3 {[%clk 0:00:23.1]}
55... h3 {[%clk 0:00:22.8]} 56. Kd4 {[%clk 0:00:22.8]} 56... h2 {[%clk
0:00:23.2]} 57. Kxc5 {[%clk 0:00:23.1]} 57... h1=Q {[%clk 0:00:24.1]} 58. Bxb7
{[%clk 0:00:23.7]} 58... Qg1+ {[%clk 0:00:24.5]} 59. Kd6 {[%clk 0:00:24.1]}
59... Qe3 {[%clk 0:00:23.9]} 60. Bxc6 {[%clk 0:00:23.8]} 60... Qd4+ {[%clk
0:00:24.5]} 61. Bd5 {[%clk 0:00:23.9]} 61... Kf2 {[%clk 0:00:24.9]} 62. c5
{[%clk 0:00:24.2]} 62... e3 {[%clk 0:00:25.8]} 63. c6 {[%clk 0:00:24.6]} 63...
e2 {[%clk 0:00:26.3]} 64. c7 {[%clk 0:00:24.9]} 64... Qb6+ {[%clk 0:00:24.2]}
65. Bc6 {[%clk 0:00:24.2]} 65... Qxc7+ {[%clk 0:00:23.1]} 66. Kxc7 {[%clk
0:00:25.1]} 66... e1=Q {[%clk 0:00:23.7]} 67. Bd7 {[%clk 0:00:25.9]} 67... Qe3
{[%clk 0:00:24.1]} 68. Bc6 {[%clk 0:00:26.8]} 68... Qf4+ {[%clk 0:00:24.5]} 69.
Kd7 {[%clk 0:00:27.7]} 69... g5 {[%clk 0:00:25.4]} 70. Kc8 {[%clk 0:00:28]}
70... g4 {[%clk 0:00:20.6]} 71. Bd7 {[%clk 0:00:28.9]} 71... g3 {[%clk
0:00:20.2]} 72. Kd8 {[%clk 0:00:29.8]} 72... g2 {[%clk 0:00:20.4]} 73. Ke7
{[%clk 0:00:30.7]} 73... g1=Q {[%clk 0:00:20.7]} 74. Ke8 {[%clk 0:00:31.6]}
74... Qg7 {[%clk 0:00:20.7]} 75. Kd8 {[%clk 0:00:31.2]} 75... Qb8+ {[%clk
0:00:21]} 76. Bc8 {[%clk 0:00:30.9]} 76... Qgc7+ {[%clk 0:00:21.4]} 77. Ke8
{[%clk 0:00:30.5]} 77... Qbxc8# {[%clk 0:00:22.3]} 0-1

[Event "*** Titled Tuesday Blitz"]
[Site "Chess.com"]
[Date "2020.03.03"]
[Round "2"]
[White "Parhamov"]
[Black "Gabix_94"]
[Result "1/2-1/2"]
[WhiteElo "3053"]
[BlackElo "2682"]
[TimeControl "180+1"]
[EndTime "9:19:48 PST"]
[Termination "Game drawn by agreement"]

1. e4 {[%clk 0:02:58.1]} 1... c5 {[%clk 0:02:56.3]} 2. Nf3 {[%clk 0:02:57.9]}
2... e6 {[%clk 0:02:55.1]} 3. d4 {[%clk 0:02:57.4]} 3... cxd4 {[%clk 0:02:50.7]}
4. Nxd4 {[%clk 0:02:58.3]} 4... Nc6 {[%clk 0:02:50.2]} 5. Nc3 {[%clk 0:02:56.8]}
5... Qc7 {[%clk 0:02:50.1]} 6. g3 {[%clk 0:02:56.5]} 6... a6 {[%clk 0:02:43.9]}
7. Bg2 {[%clk 0:02:55.3]} 7... d6 {[%clk 0:02:44.3]} 8. O-O {[%clk 0:02:54.3]}
8... Bd7 {[%clk 0:02:44.9]} 9. Re1 {[%clk 0:02:53.9]} 9... Be7 {[%clk 0:02:42]}
10. g4 {[%clk 0:02:23.5]} 10... Nxd4 {[%clk 0:02:26.3]} 11. Qxd4 {[%clk
0:02:22.2]} 11... Bf6 {[%clk 0:02:26.7]} 12. Qd3 {[%clk 0:02:21.8]} 12... Ne7
{[%clk 0:02:25.5]} 13. g5 {[%clk 0:02:19.5]} 13... Bxc3 {[%clk 0:02:23.2]} 14.
bxc3 {[%clk 0:02:19.7]} 14... Bb5 {[%clk 0:02:17.8]} 15. Qg3 {[%clk 0:02:18.3]}
15... Rc8 {[%clk 0:02:12.4]} 16. a4 {[%clk 0:02:10.1]} 16... Bc6 {[%clk
0:02:09.9]} 17. Ba3 {[%clk 0:02:07.2]} 17... e5 {[%clk 0:02:02.1]} 18. Red1
{[%clk 0:02:01.4]} 18... Rd8 {[%clk 0:02:02.1]} 19. Qd3 {[%clk 0:02:00.2]} 19...
Nc8 {[%clk 0:01:56.6]} 20. Bh3 {[%clk 0:01:57.8]} 20... O-O {[%clk 0:01:56]} 21.
Bxc8 {[%clk 0:01:56.4]} 21... Qxc8 {[%clk 0:01:56.9]} 22. f3 {[%clk 0:01:49.2]}
22... Rfe8 {[%clk 0:01:53.1]} 23. a5 {[%clk 0:01:48]} 23... d5 {[%clk
0:01:52.2]} 24. exd5 {[%clk 0:01:46.3]} 24... Bxd5 {[%clk 0:01:48.3]} 25. Qe3
{[%clk 0:01:45.3]} 25... Bc6 {[%clk 0:01:42.9]} 26. Rd3 {[%clk 0:01:37.7]} 26...
e4 {[%clk 0:01:37.8]} 27. Rxd8 {[%clk 0:01:37.4]} 27... Qxd8 {[%clk 0:01:37.6]}
28. f4 {[%clk 0:01:36.8]} 28... Qxa5 {[%clk 0:01:36.1]} 29. c4 {[%clk
0:01:36.6]} 29... Qf5 {[%clk 0:01:34.8]} 30. h3 {[%clk 0:01:36.1]} 30... Re6
{[%clk 0:01:32]} 31. Rd1 {[%clk 0:01:34.3]} 31... h6 {[%clk 0:01:32.4]} 32. Rd8+
{[%clk 0:01:34]} 32... Kh7 {[%clk 0:01:32.7]} 33. Bc1 {[%clk 0:01:26.3]} 33...
Rg6 {[%clk 0:01:27.4]} 34. Qg3 {[%clk 0:01:24.7]} 34... e3 {[%clk 0:01:25.3]}
35. Bxe3 {[%clk 0:01:23.2]} 35... Qxc2 {[%clk 0:01:24.4]} 36. h4 {[%clk
0:01:18.8]} 36... h5 {[%clk 0:01:19.9]} 37. Rd2 {[%clk 0:00:47.3]} 37... Qe4
{[%clk 0:01:14.6]} 38. Rd4 {[%clk 0:00:42.5]} 38... Qh1+ {[%clk 0:01:13.1]} 39.
Kf2 {[%clk 0:00:42.6]} 39... Re6 {[%clk 0:01:10.7]} 40. f5 {[%clk 0:00:42.6]}
40... Re4 {[%clk 0:01:09.9]} 41. g6+ {[%clk 0:00:40.9]} 41... Kg8 {[%clk
0:00:55]} 42. Rd8+ {[%clk 0:00:27.9]} 42... Re8 {[%clk 0:00:52.5]} 43. gxf7+
{[%clk 0:00:27.6]} 43... Kxf7 {[%clk 0:00:52.6]} 44. Qg6+ {[%clk 0:00:25.5]}
44... Kf8 {[%clk 0:00:52.9]} 45. Bc5+ {[%clk 0:00:22.6]} 45... Kg8 {[%clk
0:00:46.5]} 46. Rxe8+ {[%clk 0:00:23]} 46... Bxe8 {[%clk 0:00:47.4]} 47. Qxe8+
{[%clk 0:00:23.8]} 47... Kh7 {[%clk 0:00:48.3]} 48. Qxh5+ {[%clk 0:00:24.3]}
48... Kg8 {[%clk 0:00:48.2]} 49. Qe8+ {[%clk 0:00:20.4]} 49... Kh7 {[%clk
0:00:47.8]} 50. Qg6+ {[%clk 0:00:20.3]} 50... Kh8 {[%clk 0:00:47.2]} 51. h5
{[%clk 0:00:16.4]} 51... Qh4+ {[%clk 0:00:47.6]} 52. Kf3 {[%clk 0:00:16]} 52...
Qxc4 {[%clk 0:00:48.5]} 53. Qe8+ {[%clk 0:00:15.7]} 53... Kh7 {[%clk 0:00:48.4]}
54. Qg6+ {[%clk 0:00:15.6]} 54... Kh8 {[%clk 0:00:47.7]} 55. Qd6 {[%clk
0:00:15.8]} 55... Qh4 {[%clk 0:00:41.3]} 56. Qf8+ {[%clk 0:00:08.5]} 56... Kh7
{[%clk 0:00:41.8]} 57. Qf7 {[%clk 0:00:05.9]} 57... Qh1+ {[%clk 0:00:41]} 58.
Ke3 {[%clk 0:00:05.9]} 58... Qg1+ {[%clk 0:00:40.9]} 59. Ke4 {[%clk 0:00:06.1]}
59... Qxc5 {[%clk 0:00:41.8]} 60. Qxb7 {[%clk 0:00:05.2]} 60... Qc4+ {[%clk
0:00:40.4]} 61. Ke5 {[%clk 0:00:05]} 61... Qe2+ {[%clk 0:00:39.6]} 1/2-1/2

[Event "*** Titled Tuesday Blitz"]
[Site "Chess.com"]
[Date "2020.03.03"]
[Round "2"]
[White "arjwezhrtdrz"]
[Black "Korona_91"]
[Result "1-0"]
[WhiteElo "2102"]
[BlackElo "2422"]
[TimeControl "180+1"]
[EndTime "9:19:48 PST"]
[Termination "arjwezhrtdrz won by checkmate"]

1. e4 {[%clk 0:02:56.3]} 1... e6 {[%clk 0:02:56.9]} 2. d4 {[%clk 0:02:56.3]}
2... d5 {[%clk 0:02:57.3]} 3. Nd2 {[%clk 0:02:56.4]} 3... a6 {[%clk 0:02:57.1]}
4. exd5 {[%clk 0:02:56]} 4... exd5 {[%clk 0:02:57.1]} 5. Ngf3 {[%clk 0:02:56.1]}
5... c5 {[%clk 0:02:57.1]} 6. c3 {[%clk 0:02:54.6]} 6... Nf6 {[%clk 0:02:57.3]}
7. Be2 {[%clk 0:02:53.5]} 7... Nc6 {[%clk 0:02:57.7]} 8. dxc5 {[%clk 0:02:53.2]}
8... Bxc5 {[%clk 0:02:57.9]} 9. O-O {[%clk 0:02:53.3]} 9... O-O {[%clk
0:02:58.1]} 10. Nb3 {[%clk 0:02:53.5]} 10... Bb6 {[%clk 0:02:58]} 11. Bf4 {[%clk
0:02:53.2]} 11... Ne4 {[%clk 0:02:56.7]} 12. Nbd4 {[%clk 0:02:50.9]} 12... Qf6
{[%clk 0:02:54.4]} 13. Be3 {[%clk 0:02:50.6]} 13... Bc7 {[%clk 0:02:53.4]} 14.
Qc1 {[%clk 0:02:17]} 14... Bg4 {[%clk 0:02:48.3]} 15. Re1 {[%clk 0:02:15.3]}
15... Qd6 {[%clk 0:02:41.7]} 16. g3 {[%clk 0:02:07.6]} 16... f5 {[%clk
0:02:38.4]} 17. Bf4 {[%clk 0:02:07.2]} 17... Qd7 {[%clk 0:02:34.2]} 18. Bxc7
{[%clk 0:02:07.2]} 18... Qxc7 {[%clk 0:02:34.7]} 19. Ne6 {[%clk 0:02:06.4]}
19... Qb6 {[%clk 0:02:35]} 20. Nfd4 {[%clk 0:01:57.8]} 20... Nxd4 {[%clk
0:02:25.8]} 21. Nxd4 {[%clk 0:01:54.6]} 21... Bxe2 {[%clk 0:02:25.6]} 22. Rxe2
{[%clk 0:01:52.5]} 22... f4 {[%clk 0:02:25.1]} 23. Qc2 {[%clk 0:01:42]} 23... f3
{[%clk 0:02:22.4]} 24. Re3 {[%clk 0:01:34.2]} 24... Ng5 {[%clk 0:02:04.6]} 25.
h4 {[%clk 0:01:28.9]} 25... Ne4 {[%clk 0:01:48.2]} 26. Qb3 {[%clk 0:01:15.3]}
26... Qd6 {[%clk 0:01:36.5]} 27. Rxe4 {[%clk 0:01:14.1]} 27... Rf7 {[%clk
0:01:26.4]} 28. Re3 {[%clk 0:01:11.2]} 28... Raf8 {[%clk 0:01:26.6]} 29. Rae1
{[%clk 0:01:09.2]} 29... g5 {[%clk 0:01:24.5]} 30. hxg5 {[%clk 0:01:06]} 30...
h6 {[%clk 0:01:21.3]} 31. gxh6 {[%clk 0:00:55.5]} 31... Qd7 {[%clk 0:01:14.5]}
32. Re6 {[%clk 0:00:49]} 32... Kh8 {[%clk 0:01:06.2]} 33. R1e5 {[%clk
0:00:40.6]} 33... Rd8 {[%clk 0:00:45.9]} 34. Qc2 {[%clk 0:00:24.8]} 34... Rg8
{[%clk 0:00:42.2]} 35. Qd3 {[%clk 0:00:20.8]} 35... Qd8 {[%clk 0:00:40.2]} 36.
Nxf3 {[%clk 0:00:19.8]} 36... Qf8 {[%clk 0:00:35.8]} 37. Re3 {[%clk 0:00:18.2]}
37... Rf4 {[%clk 0:00:30.8]} 38. Kf1 {[%clk 0:00:16.9]} 38... Rfg4 {[%clk
0:00:23.4]} 39. Qxd5 {[%clk 0:00:15.3]} 39... Kh7 {[%clk 0:00:15.3]} 40. Qe5
{[%clk 0:00:14.9]} 40... Qc8 {[%clk 0:00:10]} 41. Re7+ {[%clk 0:00:14.3]} 41...
Kg6 {[%clk 0:00:10.2]} 42. Qe6+ {[%clk 0:00:14.6]} 42... Qxe6 {[%clk 0:00:09.7]}
43. R7xe6+ {[%clk 0:00:15]} 43... Kh7 {[%clk 0:00:09.8]} 44. R6e4 {[%clk
0:00:14.9]} 44... R4g6 {[%clk 0:00:09.8]} 45. Re7+ {[%clk 0:00:15]} 45... Kh8
{[%clk 0:00:10.1]} 46. R3e6 {[%clk 0:00:15.1]} 46... Rxh6 {[%clk 0:00:10.7]} 47.
Rxh6# {[%clk 0:00:15.1]} 1-0

[Event "*** Titled Tuesday Blitz"]
[Site "Chess.com"]
[Date "2020.03.03"]
[Round "2"]
[White "Sashadav97"]
[Black "sergoy"]
[Result "1-0"]
[WhiteElo "2579"]
[BlackElo "2771"]
[TimeControl "180+1"]
[EndTime "9:19:55 PST"]
[Termination "Sashadav97 won by resignation"]

1. d4 {[%clk 0:03:00.9]} 1... d5 {[%clk 0:02:52.7]} 2. c4 {[%clk 0:03:00.7]}
2... c6 {[%clk 0:02:47.4]} 3. cxd5 {[%clk 0:03:00.4]} 3... cxd5 {[%clk
0:02:48.3]} 4. Bf4 {[%clk 0:03:01]} 4... Nf6 {[%clk 0:02:44.8]} 5. e3 {[%clk
0:03:01.1]} 5... Nc6 {[%clk 0:02:45]} 6. Nc3 {[%clk 0:02:59.9]} 6... a6 {[%clk
0:02:44.2]} 7. Bd3 {[%clk 0:02:57.4]} 7... Bg4 {[%clk 0:02:42.4]} 8. Nge2 {[%clk
0:02:56.7]} 8... e6 {[%clk 0:02:42.2]} 9. O-O {[%clk 0:02:56.3]} 9... Bd6 {[%clk
0:02:40.1]} 10. f3 {[%clk 0:02:52.9]} 10... Bh5 {[%clk 0:02:40]} 11. Rc1 {[%clk
0:02:53.4]} 11... O-O {[%clk 0:02:39.7]} 12. Na4 {[%clk 0:02:49.8]} 12... Bg6
{[%clk 0:02:39]} 13. Nc5 {[%clk 0:02:42.3]} 13... Bxf4 {[%clk 0:02:16.2]} 14.
Nxf4 {[%clk 0:02:40.8]} 14... Bxd3 {[%clk 0:02:16.6]} 15. Nfxd3 {[%clk
0:02:38.1]} 15... Qe7 {[%clk 0:02:16.2]} 16. a3 {[%clk 0:02:09.1]} 16... Na5
{[%clk 0:02:11]} 17. Ne5 {[%clk 0:01:51.7]} 17... Rfc8 {[%clk 0:02:04]} 18. Qe2
{[%clk 0:01:22.6]} 18... b5 {[%clk 0:01:26.3]} 19. b3 {[%clk 0:01:14.1]} 19...
Ne8 {[%clk 0:01:22.8]} 20. Qd2 {[%clk 0:00:58.9]} 20... Nc6 {[%clk 0:01:17.7]}
21. Nxc6 {[%clk 0:00:24.1]} 21... Rxc6 {[%clk 0:01:18.6]} 22. e4 {[%clk
0:00:24.8]} 22... dxe4 {[%clk 0:01:13.1]} 23. fxe4 {[%clk 0:00:23.8]} 23... Rd8
{[%clk 0:01:13.6]} 24. Qf2 {[%clk 0:00:19.4]} 24... Nf6 {[%clk 0:01:10.3]} 25.
Rce1 {[%clk 0:00:18]} 25... e5 {[%clk 0:01:05.5]} 26. b4 {[%clk 0:00:14.6]}
26... Rxd4 {[%clk 0:01:04]} 27. Qf5 {[%clk 0:00:14.7]} 27... g6 {[%clk
0:00:58.9]} 28. Qf3 {[%clk 0:00:14.5]} 28... Kg7 {[%clk 0:00:55.1]} 29. Re2
{[%clk 0:00:14.7]} 29... Rcd6 {[%clk 0:00:53.7]} 30. Ref2 {[%clk 0:00:14.8]}
30... Rd2 {[%clk 0:00:50.6]} 31. h3 {[%clk 0:00:14.5]} 31... Rxf2 {[%clk
0:00:48]} 32. Qxf2 {[%clk 0:00:15.4]} 32... Rc6 {[%clk 0:00:42.7]} 33. Kh2
{[%clk 0:00:14.1]} 33... a5 {[%clk 0:00:42.4]} 34. g4 {[%clk 0:00:13.9]} 34...
axb4 {[%clk 0:00:38.4]} 35. axb4 {[%clk 0:00:14.8]} 35... Rd6 {[%clk 0:00:38.9]}
36. Qe2 {[%clk 0:00:13.9]} 36... Qd8 {[%clk 0:00:37.1]} 37. Rf2 {[%clk
0:00:14.2]} 37... h5 {[%clk 0:00:35.2]} 38. g5 {[%clk 0:00:11]} 38... Nh7 {[%clk
0:00:23.9]} 39. h4 {[%clk 0:00:11.2]} 39... Rb6 {[%clk 0:00:21.2]} 40. Qf3
{[%clk 0:00:11]} 40... Qe7 {[%clk 0:00:21.5]} 41. Qd3 {[%clk 0:00:10.5]} 41...
f6 {[%clk 0:00:19.4]} 42. Qd5 {[%clk 0:00:08.2]} 42... Rd6 {[%clk 0:00:15.9]}
43. Qa8 {[%clk 0:00:08.2]} 43... fxg5 {[%clk 0:00:15.3]} 44. Ra2 {[%clk
0:00:07.6]} 44... Rd8 {[%clk 0:00:13.6]} 45. Ra7 {[%clk 0:00:03.7]} 45... Rxa8
{[%clk 0:00:13.2]} 46. Rxe7+ {[%clk 0:00:04.2]} 46... Kh8 {[%clk 0:00:13.6]} 47.
hxg5 {[%clk 0:00:04.4]} 47... Nxg5 {[%clk 0:00:14.5]} 48. Rc7 {[%clk 0:00:04.3]}
48... Ra2+ {[%clk 0:00:14.3]} 49. Kg3 {[%clk 0:00:04.7]} 49... Ra3+ {[%clk
0:00:14.7]} 50. Kf2 {[%clk 0:00:04.1]} 50... Nh3+ {[%clk 0:00:14.5]} 51. Ke1
{[%clk 0:00:03.9]} 51... Nf4 {[%clk 0:00:14.3]} 52. Kd2 {[%clk 0:00:04.4]} 52...
h4 {[%clk 0:00:14.3]} 53. Nd7 {[%clk 0:00:03.6]} 53... h3 {[%clk 0:00:14.2]} 54.
Nf6 {[%clk 0:00:03.7]} 54... Rd3+ {[%clk 0:00:04.5]} 55. Kc2 {[%clk 0:00:03.9]}
55... Rc3+ {[%clk 0:00:04.3]} 56. Kxc3 {[%clk 0:00:03.7]} 1-0